fUSD/lending_fUSD_20240519
["ID","MTS","AMOUNT","RATE_DAILY","PERIOD"]
[327451899,1716078691918,-500.0,0.00029589,2]
[327451900,1716078691928,-2423.7,0.00029589,2]
[327451901,1716078691937,-2444.57,0.00029589,2]
[327451902,1716078691946,-690.97,0.00029589,2]
[327451903,1716078691956,-782.51,0.00029589,2]
[327451904,1716078691965,-500.0,0.00029589,2]
[327451905,1716078691975,-2076.59,0.00029589,2]
[327451906,1716078691984,-14693.09,0.00029589,2]
[327451907,1716078691993,-2483.23,0.00029589,2]
[327451908,1716078692003,-634.11,0.00029589,2]
[327451909,1716078692012,-1053.73,0.00029589,2]
[327451910,1716078692021,-1080.2,0.00029589,2]
[327451911,1716078692031,-500.0,0.00029589,2]
[327451912,1716078692040,-4673.28,0.00029589,2]
[327451913,1716078692050,-500.0,0.00029589,2]
[327451914,1716078692059,-500.0,0.00029589,2]
[327451915,1716078692069,-1437.6,0.00029589,2]
[327451916,1716078692079,-500.0,0.00029589,2]
[327451917,1716078692088,-1159.59,0.00029589,2]
[327451918,1716078692097,-500.0,0.00029589,2]
[327451919,1716078692107,-627.84,0.00029589,2]
[327451920,1716078692116,-880.42,0.00029589,2]
[327451921,1716078692125,-1488.28,0.00029589,2]
[327451922,1716078692135,-1630.92,0.00029589,2]
[327451923,1716078692144,-9733.43,0.00029589,2]
[327451924,1716078692153,-500.0,0.00029589,2]
[327451925,1716078692163,-880.17,0.00029589,2]
[327451926,1716078692172,-2962.83,0.00029589,2]
[327451927,1716078692181,-500.0,0.00029589,2]
[327451928,1716078692190,-500.0,0.00029589,2]
[327451929,1716078692199,-716.13,0.00029589,2]
[327451930,1716078692208,-768.84,0.00029589,2]
[327451931,1716078692217,-986.7,0.00029589,2]
[327451932,1716078692227,-1662.73,0.00029589,2]
[327451933,1716078692236,-4303.61,0.00029589,2]
[327451934,1716078692246,-1840.17,0.00029589,2]
[327451935,1716078692255,-631.36,0.00029589,2]
[327451936,1716078692264,-724.28,0.00029589,2]
[327451937,1716078692274,-3000.96,0.00029589,2]
[327451938,1716078692287,-613.97,0.00029589,2]
[327451939,1716078692296,-504.46,0.00029589,2]
[327451940,1716078692306,-525.96,0.00029589,2]
[327451941,1716078692315,-500.0,0.00029589,2]
[327451942,1716078692324,-3050.31,0.00029589,2]
[327451943,1716078692333,-2206.8,0.00029589,2]
[327451944,1716078692342,-3296.43,0.00029589,2]
[327451945,1716078692351,-3601.59,0.00029589,2]
[327451946,1716078692360,-3041.56,0.00029589,2]
[327451947,1716078692369,-151.0,0.00029589,7]
[327451948,1716078692378,-523.16,0.00029589,2]
[327451949,1716078692388,-2275.09,0.00029589,2]
[327451950,1716078692397,-500.0,0.00029589,2]
[327451951,1716078692407,-3685.01,0.00029589,2]
[327451952,1716078692415,-1919.05,0.00029589,2]
[327451953,1716078692425,-750.61,0.00029589,2]
[327451954,1716078692433,-1219.88,0.00029589,2]
[327451955,1716078692443,-1988.81,0.00029589,2]
[327451956,1716078692452,-606.7,0.00029589,2]
[327451957,1716078692461,-500.0,0.00029589,2]
[327451958,1716078692470,-2176.0,0.00029589,2]
[327451959,1716078692480,-1878.81,0.00029589,2]
[327451960,1716078692489,-2585.42,0.00029589,2]
[327451961,1716078692499,-3682.41,0.00029589,2]
[327451962,1716078692509,-500.0,0.00029589,2]
[327451963,1716078692518,-738.69,0.00029589,2]
[327451964,1716078692527,-702.165279,0.00029589,7]
[327451965,1716078692536,-1679.77,0.00029589,2]
[327451966,1716078692546,-702.165279,0.00029589,7]
[327451967,1716078692555,-500.0,0.00029589,2]
[327451968,1716078692564,-2986.43,0.00029589,2]
[327451969,1716078692573,-4242.79,0.00029589,2]
[327451970,1716078692582,-500.0,0.00029589,2]
[327451971,1716078692591,-500.0,0.00029589,2]
[327451972,1716078692600,-3057.4,0.00029589,2]
[327451973,1716078692610,-232.574185,0.00029589,7]
[327451974,1716078692619,-1055.1,0.00029589,2]
[327451975,1716078692628,-500.0,0.00029589,2]
[327451976,1716078692638,-232.574185,0.00029589,7]
[327451977,1716078692648,-5880.85,0.00029589,2]
[327451978,1716078692657,-1361.72,0.00029589,2]
[327451979,1716078692666,-2275.09,0.00029589,2]
[327451980,1716078692675,-567.25,0.00029589,2]
[327451981,1716078692685,-1546.63,0.00029589,2]
[327451982,1716078692694,-2234.1,0.00029589,2]
[327451983,1716078692703,-2444.03,0.00029589,2]
[327451984,1716078692712,-500.0,0.00029589,2]
[327451985,1716078692721,-629.55,0.00029589,2]
[327451986,1716078692730,-500.0,0.00029589,2]
[327451987,1716078692739,-500.0,0.00029589,2]
[327451988,1716078692749,-631.01,0.00029589,2]
[327451989,1716078692758,-1214.83,0.00029589,2]
[327451990,1716078692767,-751.01,0.00029589,2]
[327451991,1716078692776,-279.171877,0.00029589,7]
[327451992,1716078692786,-500.0,0.00029589,2]
[327451993,1716078692795,-1907.53,0.00029589,2]
[327451994,1716078692804,-2098.31,0.00029589,2]
[327451995,1716078692814,-823.01,0.00029589,2]
[327451996,1716078692823,-1155.69,0.00029589,2]
[327451997,1716078692832,-500.0,0.00029589,2]
[327451998,1716078692840,-598.87,0.00029589,2]
[327451999,1716078692849,-553.76,0.00029589,2]
[327452000,1716078692858,-513.61,0.00029589,2]
[327452001,1716078692867,-2141.74,0.00029589,2]
[327452002,1716078692877,-916.74,0.00029589,2]
[327452003,1716078692886,-971.82,0.00029589,2]
[327452004,1716078692895,-2760.5,0.00029589,2]
[327452005,1716078692905,-1119.54,0.00029589,2]
[327452006,1716078692914,-500.0,0.00029589,2]
[327452007,1716078692924,-2356.22,0.00029589,2]
[327452008,1716078692933,-6798.107725,0.00029589,7]
[327452009,1716078692942,-500.0,0.00029589,2]
[327452010,1716078692951,-2440.20609874,0.00029676,2]
[327452011,1716078692960,-1000.0,0.00029691,15]
[327452012,1716078692970,-157.051908,0.00029748,14]
[327452013,1716078692980,-567.79,0.00029756,2]
[327452014,1716078692989,-165.288311,0.00029772,2]
[327452015,1716078692998,-2427.230616,0.00029772,2]
[327452016,1716078693008,-824.935677,0.00029772,2]
[327452017,1716078693017,-5191.472607,0.00029772,2]
[327452018,1716078693027,-5342.53652499,0.00029831,2]
[327452019,1716078693036,-2152.67312902,0.0002985,2]
[327452020,1716078693045,-500.0,0.00029862,2]
[327452021,1716078693054,-247.4,0.00029862,2]
[327452022,1716078693063,-212.93880221,0.00029862,2]
[327452023,1716078693073,-681.95,0.00029863,2]
[327452024,1716078693082,-508.179353,0.00029863,2]
[327452025,1716078693091,-500.0,0.00029863,2]
[327452026,1716078693100,-500.0,0.00029863,2]
[327452027,1716078693109,-326.24247667,0.00029863,2]
[327452028,1716078693118,-151.0,0.00029863,7]
[327452029,1716078693127,-151.0,0.00029863,7]
[327452030,1716078693136,-500.0,0.00029863,2]
[327452031,1716078693145,-151.0,0.00029863,7]
[327452032,1716078693154,-500.0,0.00029863,2]
[327452033,1716078693163,-500.0,0.00029863,2]
[327452034,1716078693172,-500.0,0.00029863,2]
[327452035,1716078693182,-500.0,0.00029863,2]
[327452036,1716078693195,-505.93,0.00029863,2]
[327452037,1716078693205,-517.25,0.00029863,2]
[327452038,1716078693214,-500.0,0.00029863,2]
[327452039,1716078693224,-500.0,0.00029863,2]
[327452040,1716078693233,-500.0,0.00029863,2]
[327452041,1716078693242,-500.0,0.00029863,2]
[327452042,1716078693252,-500.0,0.00029863,2]
[327452043,1716078693262,-261.55355831,0.00029863,2]
[327452044,1716078693271,-500.0,0.00029863,2]
[327452045,1716078693284,-500.0,0.00029863,2]
[327452046,1716078693294,-500.0,0.00029863,2]
[327452047,1716078693303,-500.0,0.00029863,2]
[327452048,1716078693313,-733.98,0.00029863,2]
[327452049,1716078693323,-500.0,0.00029863,2]
[327452050,1716078693332,-500.0,0.00029863,2]
[327452051,1716078693342,-500.0,0.00029863,2]
[327452052,1716078693351,-500.0,0.00029863,2]
[327452053,1716078693364,-151.0,0.00029863,7]
[327452054,1716078693374,-500.0,0.00029863,2]
[327452055,1716078693384,-722.95,0.00029863,2]
[327452056,1716078693393,-500.0,0.00029863,2]
[327452057,1716078693402,-1030.53,0.00029863,2]
[327452058,1716078693412,-502.13,0.00029863,2]
[327452059,1716078693421,-500.0,0.00029863,2]
[327452060,1716078693431,-500.0,0.00029863,2]
[327452061,1716078693440,-500.0,0.00029863,2]
[327452062,1716078693449,-500.0,0.00029863,2]
[327452063,1716078693458,-1044.26,0.00029863,2]
[327452064,1716078693467,-583.65,0.00029863,2]
[327452065,1716078693479,-648.82,0.00029863,2]
[327452066,1716078693487,-152.930469,0.00029863,7]
[327452067,1716078693496,-574.36,0.00029863,2]
[327452068,1716078693505,-537.0,0.00029863,2]
[327452069,1716078693514,-500.0,0.00029863,2]
[327452070,1716078693524,-500.0,0.00029863,2]
[327452071,1716078693533,-500.0,0.00029863,2]
[327452072,1716078693542,-151.0,0.00029863,7]
[327452073,1716078693552,-500.0,0.00029863,2]
[327452074,1716078693561,-500.0,0.00029863,2]
[327452075,1716078693570,-500.0,0.00029863,2]
[327452076,1716078693579,-505.89,0.00029863,2]
[327452077,1716078693588,-737.65,0.00029863,2]
[327452078,1716078693599,-599.43291959,0.00029863,2]
[327452079,1716078693608,-633.99601658,0.00029863,2]
[327452080,1716078693617,-500.0,0.00029863,2]
[327452081,1716078693626,-173.29715017,0.00029863,2]
[327452082,1716078693636,-500.0,0.00029863,2]
[327452083,1716078693645,-577.98,0.00029863,2]
[327452084,1716078693654,-243.873149,0.00029863,7]
[327452085,1716078693663,-500.0,0.00029863,2]
[327452086,1716078693672,-243.873149,0.00029863,7]
[327452087,1716078693681,-500.0,0.00029863,2]
[327452088,1716078693690,-531.85,0.00029863,2]
[327452089,1716078693699,-500.0,0.00029863,2]
[327452090,1716078693708,-500.0,0.00029863,2]
[327452091,1716078693717,-630.47,0.00029863,2]
[327452092,1716078693729,-921.62,0.00029863,2]
[327452093,1716078693738,-598.64,0.00029863,2]
[327452094,1716078693750,-597.35,0.00029863,2]
[327452095,1716078693759,-500.0,0.00029863,2]
[327452096,1716078693769,-678.99,0.00029863,2]
[327452097,1716078693778,-500.0,0.00029863,2]
[327452098,1716078693787,-1138.39,0.00029863,2]
[327452099,1716078693797,-596.25,0.00029863,2]
[327452100,1716078693806,-500.0,0.00029863,2]
[327452101,1716078693816,-500.0,0.00029863,2]
[327452102,1716078693825,-827.83,0.00029863,2]
[327452103,1716078693834,-500.0,0.00029863,2]
[327452104,1716078693843,-580.907871,0.00029863,7]
[327452105,1716078694056,-500.0,0.00029863,2]
[327452106,1716078694065,-890.31,0.00029863,2]
[327452107,1716078694075,-1011.91,0.00029863,2]
[327452108,1716078694084,-580.907871,0.00029863,7]
[327452109,1716078694093,-500.0,0.00029863,2]
[327452110,1716078694102,-500.0,0.00029863,2]
[327452111,1716078694111,-655.15,0.00029863,2]
[327452112,1716078694120,-500.0,0.00029863,2]
[327452113,1716078694129,-500.0,0.00029863,2]
[327452114,1716078694138,-672.45,0.00029863,2]
[327452115,1716078694148,-500.0,0.00029863,2]
[327452116,1716078694157,-500.0,0.00029863,2]
[327452117,1716078694166,-500.0,0.00029863,2]
[327452118,1716078694175,-504.05,0.00029863,2]
[327452119,1716078694184,-689.56,0.00029863,2]
[327452120,1716078694193,-500.0,0.00029863,2]
[327452121,1716078694203,-611.06,0.00029863,2]
[327452122,1716078694212,-500.0,0.00029863,2]
[327452123,1716078694221,-633.75,0.00029863,2]
[327452124,1716078694231,-500.0,0.00029863,2]
[327452125,1716078694240,-900.3,0.00029863,2]
[327452126,1716078694249,-500.0,0.00029863,2]
[327452127,1716078694258,-500.0,0.00029863,2]
[327452128,1716078694267,-523.89,0.00029863,2]
[327452129,1716078694277,-569.19,0.00029863,2]
[327452130,1716078694290,-534.55,0.00029863,2]
[327452131,1716078694300,-500.0,0.00029863,2]
[327452132,1716078694309,-500.0,0.00029863,2]
[327452133,1716078694318,-529.66810434,0.00029863,2]
[327452134,1716078694327,-1239.6,0.00029863,2]
[327452135,1716078694337,-637.24,0.00029863,2]
[327452136,1716078694347,-500.0,0.00029863,2]
[327452137,1716078694356,-748.98,0.00029863,2]
[327452138,1716078694365,-151.0,0.00029863,7]
[327452139,1716078694375,-500.0,0.00029863,2]
[327452140,1716078694383,-527.94,0.00029863,2]
[327452141,1716078694393,-832.73,0.00029863,2]
[327452142,1716078694401,-500.0,0.00029863,2]
[327452143,1716078694410,-551.34,0.00029863,2]
[327452144,1716078694420,-500.0,0.00029863,2]
[327452145,1716078694429,-500.0,0.00029863,2]
[327452146,1716078694438,-500.0,0.00029863,2]
[327452147,1716078694447,-285.07078127,0.00029863,2]
[327452148,1716078694456,-876.87,0.00029863,2]
[327452149,1716078694465,-500.0,0.00029863,2]
[327452150,1716078694476,-500.0,0.00029863,2]
[327452151,1716078694485,-812.13,0.00029863,2]
[327452152,1716078694494,-648.2,0.00029863,2]
[327452153,1716078694503,-500.0,0.00029863,2]
[327452154,1716078694512,-1583.82,0.00029863,2]
[327452155,1716078694521,-500.0,0.00029863,2]
[327452156,1716078694530,-1475.35,0.00029863,2]
[327452157,1716078694539,-895.82,0.00029863,2]
[327452158,1716078694548,-189.7757407,0.00029863,2]
[327452159,1716078694557,-670.03,0.00029863,2]
[327452160,1716078694566,-882.87,0.00029863,2]
[327452161,1716078694575,-500.0,0.00029863,2]
[327452162,1716078694584,-488.95,0.00029863,2]
[327452163,1716078694594,-580.61,0.00029863,2]
[327452164,1716078694603,-545.97,0.00029863,2]
[327452165,1716078694612,-500.0,0.00029863,2]
[327452166,1716078694621,-151.0,0.00029863,7]
[327452167,1716078694631,-500.0,0.00029863,2]
[327452168,1716078694640,-529.56,0.00029863,2]
[327452169,1716078694649,-500.0,0.00029863,2]
[327452170,1716078694658,-2239.3,0.00029863,2]
[327452171,1716078694668,-151.0,0.00029863,7]
[327452172,1716078694677,-588.98,0.00029863,2]
[327452173,1716078694686,-619.46,0.00029863,2]
[327452174,1716078694695,-823.42,0.00029863,2]
[327452175,1716078694704,-500.0,0.00029863,2]
[327452176,1716078694713,-899.65,0.00029863,2]
[327452177,1716078694723,-541.86,0.00029863,2]
[327452178,1716078694732,-716.2,0.00029863,2]
[327452179,1716078694741,-621.68,0.00029863,2]
[327452180,1716078694750,-1398.84,0.00029863,2]
[327452181,1716078694759,-669.33,0.00029863,2]
[327452182,1716078694768,-557.15,0.00029863,2]
[327452183,1716078694777,-500.0,0.00029863,2]
[327452184,1716078694787,-735.95,0.00029863,2]
[327452185,1716078694796,-669.0,0.00029863,2]
[327452186,1716078694805,-753.99,0.00029863,2]
[327452187,1716078694814,-1923.63,0.00029863,2]
[327452188,1716078694823,-884.1,0.00029863,2]
[327452189,1716078694832,-656.37,0.00029863,2]
[327452190,1716078694841,-500.0,0.00029863,2]
[327452191,1716078694851,-928.15,0.00029863,2]
[327452192,1716078694860,-500.0,0.00029863,2]
[327452193,1716078694869,-500.0,0.00029863,2]
[327452194,1716078694878,-806.75,0.00029863,2]
[327452195,1716078694887,-685.35,0.00029863,2]
[327452196,1716078694896,-648.92,0.00029863,2]
[327452197,1716078694906,-200.62302522,0.00029863,2]
[327452198,1716078694915,-500.0,0.00029863,2]
[327452199,1716078694924,-614.14,0.00029863,2]
[327452200,1716078694932,-813.03,0.00029863,2]
[327452201,1716078694942,-791.44,0.00029863,2]
[327452202,1716078694951,-500.0,0.00029863,2]
[327452203,1716078694960,-500.0,0.00029863,2]
[327452204,1716078694969,-1036.27,0.00029863,2]
[327452205,1716078694978,-693.8,0.00029863,2]
[327452206,1716078694988,-500.0,0.00029863,2]
[327452207,1716078694997,-1117.96,0.00029863,2]
[327452208,1716078695006,-774.17,0.00029863,2]
[327452209,1716078695016,-500.0,0.00029863,2]
[327452210,1716078695025,-500.0,0.00029863,2]
[327452211,1716078695034,-554.73,0.00029863,2]
[327452212,1716078695044,-762.69,0.00029863,2]
[327452213,1716078695053,-500.0,0.00029863,2]
[327452214,1716078695062,-500.0,0.00029863,2]
[327452215,1716078695071,-500.0,0.00029863,2]
[327452216,1716078695081,-150.0,0.00029863,2]
[327452217,1716078695090,-1681.9,0.00029863,2]
[327452218,1716078695099,-1315.61,0.00029863,2]
[327452219,1716078695109,-518.65,0.00029863,2]
[327452220,1716078695118,-578.45,0.00029863,2]
[327452221,1716078695127,-1008.21,0.00029863,2]
[327452222,1716078695136,-500.0,0.00029863,2]
[327452223,1716078695146,-500.0,0.00029863,2]
[327452224,1716078695155,-665.8,0.00029863,2]
[327452225,1716078695165,-512.39,0.00029863,2]
[327452226,1716078695174,-500.0,0.00029863,2]
[327452227,1716078695183,-1367.82,0.00029863,2]
[327452228,1716078695193,-500.0,0.00029863,2]
[327452229,1716078695203,-966.33,0.00029863,2]
[327452230,1716078695212,-911.7,0.00029863,2]
[327452231,1716078695222,-957.33,0.00029863,2]
[327452232,1716078695231,-1131.82,0.00029863,2]
[327452233,1716078695240,-500.0,0.00029863,2]
[327452234,1716078695250,-1166.35,0.00029863,2]
[327452235,1716078695259,-500.0,0.00029863,2]
[327452236,1716078695268,-500.0,0.00029863,2]
[327452237,1716078695279,-862.14,0.00029863,2]
[327452238,1716078695292,-960.69,0.00029863,2]
[327452239,1716078695301,-522.68,0.00029863,2]
[327452240,1716078695310,-654.36,0.00029863,2]
[327452241,1716078695320,-500.0,0.00029863,2]
[327452242,1716078695331,-500.0,0.00029863,2]
[327452243,1716078695340,-500.0,0.00029863,2]
[327452244,1716078695349,-1298.17,0.00029863,2]
[327452245,1716078695358,-852.23,0.00029863,2]
[327452246,1716078695370,-640.04657969,0.00029863,2]
[327452247,1716078695379,-500.0,0.00029863,2]
[327452248,1716078695389,-641.81,0.00029863,2]
[327452249,1716078695398,-1049.32,0.00029863,2]
[327452250,1716078695407,-920.0,0.00029863,2]
[327452251,1716078695416,-559.84,0.00029863,2]
[327452252,1716078695425,-500.0,0.00029863,2]
[327452253,1716078695434,-500.0,0.00029863,2]
[327452254,1716078695443,-500.0,0.00029863,2]
[327452255,1716078695453,-500.0,0.00029863,2]
[327452256,1716078695463,-1059.88,0.00029863,2]
[327452257,1716078695474,-500.0,0.00029863,2]
[327452258,1716078695483,-1239.43,0.00029863,2]
[327452259,1716078695492,-930.82,0.00029863,2]
[327452260,1716078695502,-896.18,0.00029863,2]
[327452261,1716078695511,-1090.58,0.00029863,2]
[327452262,1716078695521,-500.0,0.00029863,2]
[327452263,1716078695530,-501.2,0.00029863,2]
[327452264,1716078695541,-756.03,0.00029863,2]
[327452265,1716078695551,-568.47,0.00029863,2]
[327452266,1716078695559,-3708.29,0.00029863,2]
[327452267,1716078695569,-634.45,0.00029863,2]
[327452268,1716078695579,-669.45,0.00029863,2]
[327452269,1716078695589,-640.29,0.00029863,2]
[327452270,1716078695601,-1188.88,0.00029863,2]
[327452271,1716078695611,-151.0,0.00029863,7]
[327452272,1716078695621,-1706.37,0.00029863,2]
[327452273,1716078695630,-151.0,0.00029863,7]
[327452274,1716078695640,-501.03,0.00029863,2]
[327452275,1716078695649,-500.0,0.00029863,2]
[327452276,1716078695659,-604.36,0.00029863,2]
[327452277,1716078695668,-18503.15,0.00029863,2]
[327452278,1716078695677,-500.0,0.00029863,2]
[327452279,1716078695686,-3042.71,0.00029863,2]
[327452280,1716078695696,-243.382886,0.00029863,7]
[327452281,1716078695705,-918.3,0.00029863,2]
[327452282,1716078695715,-673.49,0.00029863,2]
[327452283,1716078695727,-500.0,0.00029863,2]
[327452284,1716078695736,-1478.1,0.00029863,2]
[327452285,1716078695746,-152.184617,0.00029863,7]
[327452286,1716078695755,-243.382886,0.00029863,7]
[327452287,1716078695765,-563.24,0.00029863,2]
[327452288,1716078695776,-1236.25,0.00029863,2]
[327452289,1716078695786,-6353.16,0.00029863,2]
[327452290,1716078695796,-858.51,0.00029863,2]
[327452291,1716078695807,-500.0,0.00029863,2]
[327452292,1716078695817,-1637.74,0.00029863,2]
[327452293,1716078695826,-151.0,0.00029863,7]
[327452294,1716078695835,-2093.82,0.00029863,2]
[327452295,1716078695844,-1213.21,0.00029863,2]
[327452296,1716078695853,-1033.3,0.00029863,2]
[327452297,1716078695862,-837.96,0.00029863,2]
[327452298,1716078695871,-649.63,0.00029863,2]
[327452299,1716078695881,-6393.72,0.00029863,2]
[327452300,1716078695890,-1059.23,0.00029863,2]
[327452301,1716078695899,-1055.23,0.00029863,2]
[327452302,1716078695908,-1196.2,0.00029863,2]
[327452303,1716078695917,-13606.2,0.00029863,2]
[327452304,1716078695927,-892.42,0.00029863,2]
[327452305,1716078695936,-9049.33,0.00029863,2]
[327452306,1716078695945,-500.0,0.00029863,2]
[327452307,1716078695954,-1312.43,0.00029863,2]
[327452308,1716078695963,-686.8,0.00029863,2]
[327452309,1716078695973,-929.49,0.00029863,2]
[327452310,1716078695982,-500.0,0.00029863,2]
[327452311,1716078695990,-1939.3,0.00029863,2]
[327452312,1716078696000,-743.66,0.00029863,2]
[327452313,1716078696009,-500.0,0.00029863,2]
[327452314,1716078696019,-2013.02,0.00029863,2]
[327452315,1716078696027,-1030.41,0.00029863,2]
[327452316,1716078696037,-500.0,0.00029863,2]
[327452317,1716078696046,-1781.24,0.00029863,2]
[327452318,1716078696054,-500.0,0.00029863,2]
[327452319,1716078696063,-784.58,0.00029863,2]
[327452320,1716078696072,-1095.5,0.00029863,2]
[327452321,1716078696082,-214.18123913,0.00029863,2]
[327452322,1716078696091,-675.78,0.00029863,2]
[327452323,1716078696100,-151.0,0.00029863,7]
[327452324,1716078696109,-5578.21,0.00029863,2]
[327452325,1716078696118,-492.090068,0.00029863,7]
[327452326,1716078696127,-853.49,0.00029863,2]
[327452327,1716078696136,-1353.59,0.00029863,2]
[327452328,1716078696145,-4213.64,0.00029863,2]
[327452329,1716078696154,-492.090068,0.00029863,7]
[327452330,1716078696163,-151.0,0.00029863,7]
[327452331,1716078696173,-151.0,0.00029863,7]
[327452332,1716078696182,-613.16,0.00029863,2]
[327452333,1716078696192,-8319.89,0.00029863,2]
[327452334,1716078696201,-1183.02,0.00029863,2]
[327452335,1716078696210,-1523.68,0.00029863,2]
[327452336,1716078696219,-11263.28,0.00029863,2]
[327452337,1716078696229,-500.0,0.00029863,2]
[327452338,1716078696238,-687.5,0.00029863,2]
[327452339,1716078696247,-988.22,0.00029863,2]
[327452340,1716078696256,-500.0,0.00029863,2]
[327452341,1716078696265,-2530.3,0.00029863,2]
[327452342,1716078696274,-878.41,0.00029863,2]
[327452343,1716078696287,-11394.4,0.00029863,2]
[327452344,1716078696296,-1672.62,0.00029863,2]
[327452345,1716078696305,-500.0,0.00029863,2]
[327452346,1716078696314,-1326.615315,0.00029863,7]
[327452347,1716078696323,-803.29,0.00029863,2]
[327452348,1716078696333,-231.20059,0.00029863,7]
[327452349,1716078696342,-1326.615315,0.00029863,7]
[327452350,1716078696351,-7614.15,0.00029863,2]
[327452351,1716078696360,-1311.7,0.00029863,2]
[327452352,1716078696369,-1307.43,0.00029863,2]
[327452353,1716078696379,-500.0,0.00029863,2]
[327452354,1716078696389,-1045.39,0.00029863,2]
[327452355,1716078696398,-3075.12,0.00029863,2]
[327452356,1716078696408,-652.54,0.00029863,2]
[327452357,1716078696417,-151.0,0.00029863,7]
[327452358,1716078696426,-863.6,0.00029863,2]
[327452359,1716078696435,-500.0,0.00029863,2]
[327452360,1716078696444,-500.0,0.00029863,2]
[327452361,1716078696453,-1831.66,0.00029863,2]
[327452362,1716078696462,-1329.27,0.00029863,2]
[327452363,1716078696472,-675.65,0.00029863,2]
[327452364,1716078696482,-12287.87,0.00029863,2]
[327452365,1716078696491,-1113.15,0.00029863,2]
[327452366,1716078696500,-500.0,0.00029863,2]
[327452367,1716078696510,-2423.7,0.00029863,2]
[327452368,1716078696519,-2444.57,0.00029863,2]
[327452369,1716078696528,-151.0,0.00029863,7]
[327452370,1716078696537,-690.97,0.00029863,2]
[327452371,1716078696546,-782.51,0.00029863,2]
[327452372,1716078696555,-500.0,0.00029863,2]
[327452373,1716078696564,-151.0,0.00029863,7]
[327452374,1716078696573,-151.0,0.00029863,7]
[327452375,1716078696583,-2076.59,0.00029863,2]
[327452376,1716078696592,-14693.09,0.00029863,2]
[327452377,1716078696604,-2483.23,0.00029863,2]
[327452378,1716078696613,-634.11,0.00029863,2]
[327452379,1716078696622,-1053.73,0.00029863,2]
[327452380,1716078696631,-1080.2,0.00029863,2]
[327452381,1716078696640,-500.0,0.00029863,2]
[327452382,1716078696649,-151.0,0.00029863,7]
[327452383,1716078696658,-151.0,0.00029863,7]
[327452384,1716078696667,-4673.28,0.00029863,2]
[327452385,1716078696677,-500.0,0.00029863,2]
[327452386,1716078696686,-500.0,0.00029863,2]
[327452387,1716078696695,-1437.6,0.00029863,2]
[327452388,1716078696705,-1159.59,0.00029863,2]
[327452389,1716078696714,-500.0,0.00029863,2]
[327452390,1716078696723,-151.0,0.00029863,7]
[327452391,1716078696733,-151.0,0.00029863,7]
[327452392,1716078696742,-500.0,0.00029863,2]
[327452393,1716078696751,-627.84,0.00029863,2]
[327452394,1716078696760,-880.42,0.00029863,2]
[327452395,1716078696769,-1488.28,0.00029863,2]
[327452396,1716078696778,-1630.92,0.00029863,2]
[327452397,1716078696787,-9733.43,0.00029863,2]
[327452398,1716078696796,-500.0,0.00029863,2]